fUST/lending_fUST_20250623
["ID","MTS","AMOUNT","RATE_DAILY","PERIOD"]
[367177967,1750692775030,-151.0,0.000239,7]
[367177968,1750692775088,-151.0,0.000239,7]
[367177969,1750692775145,-151.0,0.000239,7]
[367177970,1750692775202,-182.83099,0.000239,7]
[367177971,1750692775258,-151.0,0.000239,7]
[367177972,1750692775316,-151.0,0.000239,7]
[367177973,1750692775372,-151.0,0.000239,7]
[367177974,1750692775437,-151.0,0.000239,7]
[367177975,1750692775501,-320.4846,0.000239,7]
[367177976,1750692775563,-320.4846,0.000239,7]
[367177977,1750692775621,-320.4846,0.000239,7]
[367177978,1750692775678,-320.4846,0.000239,7]
[367177979,1750692775741,-151.0,0.000239,7]
[367177980,1750692775805,-151.0,0.000239,7]
[367177981,1750692775865,-151.0,0.000239,7]
[367177982,1750692775922,-151.0,0.000239,7]
[367177983,1750692775983,-151.0,0.000239,7]
[367177984,1750692776040,-228.58566417,0.000239,7]
[367177985,1750692776101,-151.0,0.000239,7]
[367177986,1750692776322,-151.0,0.000239,7]
[367177987,1750692776382,-726.461119,0.000239,7]
[367177988,1750692776441,-726.461119,0.000239,7]
[367177989,1750692776500,-151.0,0.000239,7]
[367177990,1750692776558,-151.0,0.000239,7]
[367177991,1750692776619,-151.0,0.000239,7]
[367177992,1750692776675,-726.461119,0.000239,7]
[367177993,1750692776733,-726.461119,0.000239,7]
[367177994,1750692776789,-151.0,0.000239,7]
[367177995,1750692776847,-151.0,0.000239,7]
[367177996,1750692776905,-151.0,0.000239,7]
[367177997,1750692776962,-1000.0,0.000239,5]
[367177998,1750692777019,-1000.0,0.0002392,5]
[367177999,1750692777080,-12500.0,0.00023935,3]
[367178000,1750692777140,-132929.48136913,0.0002394,7]
[367178001,1750692777199,-151.0,0.0002394,7]
[367178002,1750692777254,-151.0,0.0002394,7]
[367178003,1750692777312,-151.0,0.0002394,7]
[367178004,1750692777368,-151.0,0.0002394,7]
[367178005,1750692777427,-322.367924,0.0002394,7]
[367178006,1750692777488,-322.367924,0.0002394,7]
[367178007,1750692777549,-151.0,0.0002394,7]
[367178008,1750692777609,-151.0,0.0002394,7]
[367178009,1750692777666,-151.0,0.0002394,7]
[367178010,1750692777724,-224.626753,0.0002394,7]
[367178011,1750692777781,-219.159322,0.0002394,7]
[367178012,1750692777839,-151.0,0.0002394,7]
[367178013,1750692777894,-151.0,0.0002394,7]
[367178014,1750692777953,-155.719176,0.0002394,7]
[367178015,1750692778015,-151.0,0.0002394,7]
[367178016,1750692778074,-151.0,0.0002394,7]
[367178017,1750692778135,-151.0,0.0002394,7]
[367178018,1750692778188,-151.0,0.0002394,7]
[367178019,1750692778243,-151.0,0.0002394,7]
[367178020,1750692778297,-151.0,0.0002394,7]
[367178021,1750692778355,-153.504504,0.0002394,7]
[367178022,1750692778411,-151.0,0.0002394,7]
[367178023,1750692778467,-151.0,0.0002394,7]
[367178024,1750692778526,-151.0,0.0002394,7]
[367178025,1750692778581,-151.0,0.0002394,7]
[367178026,1750692778638,-151.0,0.0002394,7]
[367178027,1750692778691,-427.936486,0.0002394,7]
[367178028,1750692778750,-151.0,0.0002394,7]
[367178029,1750692778805,-427.936486,0.0002394,7]
[367178030,1750692778862,-151.0,0.0002394,7]
[367178031,1750692778919,-151.0,0.0002394,7]
[367178032,1750692778976,-151.0,0.0002394,7]
[367178033,1750692779033,-151.0,0.0002394,7]
[367178034,1750692779087,-151.0,0.0002394,7]
[367178035,1750692779144,-151.0,0.0002394,7]
[367178036,1750692779199,-151.0,0.0002394,7]
[367178037,1750692779257,-151.0,0.0002394,7]
[367178038,1750692779312,-151.0,0.0002394,7]
[367178039,1750692779368,-151.0,0.0002394,7]
[367178040,1750692779424,-151.0,0.0002394,7]
[367178041,1750692779487,-190.453664,0.0002394,7]
[367178042,1750692779548,-190.453664,0.0002394,7]
[367178043,1750692779605,-151.0,0.0002394,7]
[367178044,1750692779663,-151.0,0.0002394,7]
[367178045,1750692779721,-230.18214666,0.0002394,3]
[367178046,1750692779780,-151.703439,0.0002394,7]
[367178047,1750692779837,-151.0,0.0002394,7]
[367178048,1750692779896,-213843.35443984,0.0002394,7]
[367178049,1750692795740,-2622.63,0.000228,7]
[367178050,1750692795816,-151.0,0.000236,7]
[367178051,1750692795881,-151.0,0.000236,7]
[367178052,1750692795948,-2622.63,0.000239,7]
[367178053,1750692796005,-994452.74,0.0002394,7]
[367178055,1750692799374,-403.68,0.0002279,10]
[367178056,1750692799441,-175058.6802902,0.0002394,7]
[367178057,1750692799500,-151.0,0.0002394,7]
[367178058,1750692799559,-151.0,0.0002394,7]
[367178059,1750692799620,-184.157617,0.0002394,7]
[367178060,1750692799681,-151.0,0.0002394,7]
[367178061,1750692799750,-151.0,0.0002394,7]
[367178062,1750692799819,-151.0,0.0002394,7]
[367178063,1750692799883,-151.0,0.0002394,7]
[367178064,1750692799948,-1117.504995,0.0002394,7]
[367178065,1750692800013,-151.0,0.0002394,7]
[367178066,1750692800076,-1117.504995,0.0002394,7]
[367178067,1750692800138,-151.0,0.0002394,7]
[367178068,1750692800199,-320.4846,0.0002394,7]
[367178069,1750692800262,-320.4846,0.0002394,7]
[367178070,1750692800324,-320.4846,0.0002394,7]
[367178071,1750692800383,-320.4846,0.0002394,7]
[367178072,1750692800445,-151.0,0.0002394,7]
[367178073,1750692800507,-151.0,0.0002394,7]
[367178074,1750692800583,-151.0,0.0002394,7]
[367178075,1750692800644,-151.0,0.0002394,7]
[367178076,1750692800704,-726.461119,0.0002394,7]
[367178077,1750692800767,-726.461119,0.0002394,7]
[367178078,1750692800830,-151.0,0.0002394,7]
[367178079,1750692800889,-151.0,0.0002394,7]
[367178080,1750692800948,-726.461119,0.0002394,7]
[367178081,1750692801008,-726.461119,0.0002394,7]
[367178082,1750692801070,-209.288982,0.0002394,7]
[367178083,1750692801126,-1000.0,0.0002394,5]
[367178084,1750692801183,-151.0,0.00023944,7]
[367178085,1750692801238,-151.186178,0.00023944,7]
[367178086,1750692801299,-151.0,0.00023944,7]
[367178087,1750692801358,-151.0,0.00023944,7]
[367178088,1750692801418,-12500.0,0.00023944,3]
[367178089,1750692801527,-12500.0,0.00023953,3]
[367178090,1750692801587,-12500.0,0.00023955,3]
[367178091,1750692801648,-230.18214666,0.0002396,3]
[367178092,1750692801709,-1000.0,0.0002396,5]
[367178093,1750692801767,-12500.0,0.00023962,3]
[367178094,1750692801832,-151.0,0.00023964,7]
[367178095,1750692801889,-12500.0,0.00023964,3]
[367178096,1750692801953,-1749.0,0.0002397,3]
[367178097,1750692802011,-1749.0,0.0002397,3]
[367178098,1750692802072,-1749.0,0.0002397,3]
[367178099,1750692802132,-1749.0,0.0002397,3]
[367178100,1750692802192,-1749.0,0.0002397,3]
[367178101,1750692802250,-1749.0,0.0002397,3]
[367178102,1750692802310,-1500.81165753,0.0002397,3]
[367178103,1750692802369,-12500.0,0.0002397,3]
[367178104,1750692802435,-12500.0,0.00023973,3]
[367178105,1750692802495,-12500.0,0.00023973,3]
[367178106,1750692802556,-151.0,0.00023973,7]
[367178107,1750692802620,-12500.0,0.00023973,3]
[367178108,1750692802681,-151.0,0.00023973,7]
[367178109,1750692802738,-151.0,0.00023973,7]
[367178110,1750692802797,-151.0,0.00023973,7]
[367178111,1750692802856,-173.023809,0.00023973,7]
[367178112,1750692802912,-151.0,0.00023973,7]
[367178113,1750692802970,-322.367924,0.00023973,7]
[367178114,1750692803028,-322.367924,0.00023973,7]
[367178115,1750692803084,-151.0,0.00023973,7]
[367178116,1750692803141,-151.0,0.00023973,7]
[367178117,1750692803197,-151.0,0.00023973,7]
[367178118,1750692803252,-151.0,0.00023973,7]
[367178119,1750692803316,-213.33507,0.00023973,7]
[367178120,1750692803373,-151.0,0.00023973,7]
[367178121,1750692803435,-151.0,0.00023973,7]
[367178122,1750692803492,-151.0,0.00023973,7]
[367178123,1750692803552,-151.0,0.00023973,7]
[367178124,1750692803610,-151.0,0.00023973,7]
[367178125,1750692803673,-151.0,0.00023973,7]
[367178126,1750692803729,-151.0,0.00023973,7]
[367178127,1750692803788,-427.936486,0.00023973,7]
[367178128,1750692803849,-151.0,0.00023973,7]
[367178129,1750692803907,-427.936486,0.00023973,7]
[367178130,1750692803965,-151.0,0.00023973,7]
[367178131,1750692804022,-151.0,0.00023973,7]
[367178132,1750692804077,-151.0,0.00023973,7]
[367178133,1750692804133,-12500.0,0.00023973,3]
[367178134,1750692804190,-151.0,0.00023973,7]
[367178135,1750692804253,-151.0,0.00023973,7]
[367178136,1750692804312,-151.0,0.00023973,7]
[367178137,1750692804377,-151.0,0.00023973,7]
[367178138,1750692804436,-151.0,0.00023973,7]
[367178139,1750692804495,-151.0,0.00023973,7]
[367178140,1750692804558,-151.0,0.00023973,7]
[367178141,1750692804626,-190.453664,0.00023973,7]
[367178142,1750692804702,-190.453664,0.00023973,7]
[367178143,1750692804759,-153.192092,0.00023973,7]
[367178144,1750692804825,-151.0,0.00023973,7]
[367178145,1750692804881,-151.0,0.00023973,7]
[367178146,1750692804939,-151.0,0.00023973,7]
[367178147,1750692804998,-151.0,0.00023973,7]
[367178148,1750692805062,-151.0,0.00023973,7]
[367178149,1750692805124,-151.0,0.00023973,7]
[367178150,1750692805185,-1117.504995,0.00023973,7]
[367178151,1750692805244,-151.0,0.00023973,7]
[367178152,1750692805309,-1117.504995,0.00023973,7]
[367178153,1750692805368,-151.0,0.00023973,7]
[367178154,1750692805427,-320.4846,0.00023973,7]
[367178155,1750692805486,-320.4846,0.00023973,7]
[367178156,1750692805546,-151.0,0.00023973,7]
[367178157,1750692805608,-151.0,0.00023973,7]
[367178158,1750692805670,-726.461119,0.00023973,7]
[367178159,1750692805733,-726.461119,0.00023973,7]
[367178160,1750692805792,-12500.0,0.00023979,3]
[367178161,1750692805850,-230.18214666,0.0002398,3]
[367178162,1750692805915,-1000.0,0.0002398,5]
[367178163,1750692805972,-12500.0,0.00023988,3]
[367178164,1750692806035,-317.0,0.00023989,3]
[367178165,1750692806089,-317.0,0.00023989,3]
[367178166,1750692806146,-1275.49,0.00023999,3]
[367178167,1750692806200,-500.0,0.00024,3]
[367178168,1750692806260,-530.96,0.00024,5]
[367178169,1750692806318,-178.19317121,0.00024,7]
[367178170,1750692806377,-1050.0,0.00024,4]
[367178171,1750692806435,-160.0,0.00024,7]
[367178172,1750692806491,-160.0,0.00024,7]
[367178173,1750692806545,-885.10818461,0.00024,14]
[367178174,1750692806601,-151.0,0.00024,14]
[367178175,1750692806658,-151.0,0.00024,7]
[367178176,1750692806713,-151.0,0.00024,7]
[367178177,1750692806770,-151.0,0.00024,7]
[367178178,1750692806828,-151.0,0.00024,7]
[367178179,1750692806885,-151.0,0.00024,7]
[367178180,1750692806943,-272.584778,0.00024,7]
[367178181,1750692807002,-151.0,0.00024,7]
[367178182,1750692807062,-151.0,0.00024,7]
[367178183,1750692807121,-322.367924,0.00024,7]
[367178184,1750692807181,-322.367924,0.00024,7]
[367178185,1750692807238,-151.0,0.00024,7]
[367178186,1750692807294,-151.0,0.00024,7]
[367178187,1750692807360,-500.0,0.00024,9]
[367178188,1750692807417,-500.0,0.00024,9]
[367178189,1750692807472,-151.0,0.00024,7]
[367178190,1750692807530,-151.0,0.00024,7]
[367178191,1750692807589,-151.0,0.00024,7]
[367178192,1750692807648,-151.0,0.00024,7]
[367178193,1750692807703,-151.0,0.00024,7]
[367178194,1750692807765,-151.0,0.00024,7]
[367178195,1750692807939,-427.936486,0.00024,7]
[367178196,1750692807999,-151.0,0.00024,7]
[367178197,1750692808065,-427.936486,0.00024,7]
[367178198,1750692808124,-151.0,0.00024,7]
[367178199,1750692808181,-151.0,0.00024,7]
[367178200,1750692808233,-151.0,0.00024,7]
[367178201,1750692808289,-151.0,0.00024,7]
[367178202,1750692808351,-151.0,0.00024,7]
[367178203,1750692808407,-151.0,0.00024,7]
[367178204,1750692808462,-151.0,0.00024,7]
[367178205,1750692808517,-151.0,0.00024,7]
[367178206,1750692808580,-151.0,0.00024,7]
[367178207,1750692808638,-190.453664,0.00024,7]
[367178208,1750692808695,-190.453664,0.00024,7]
[367178209,1750692808751,-230.18214666,0.00024,7]
[367178210,1750692808809,-200.214501,0.00024,7]
[367178211,1750692808867,-3764.38226877,0.00024,7]
[367178212,1750692808929,-248.227502,0.00024,7]
[367178213,1750692808988,-160.0,0.00024,7]
[367178214,1750692809045,-160.0,0.00024,7]
[367178215,1750692809101,-160.0,0.00024,3]
[367178216,1750692809160,-836.70095952,0.00024,7]
[367178217,1750692809218,-836.70095952,0.00024,3]
[367178218,1750692809279,-151.0,0.00024,7]
[367178219,1750692809336,-151.0,0.00024,7]
[367178220,1750692809397,-151.0,0.00024,7]
[367178221,1750692809458,-211.779142,0.00024,7]
[367178222,1750692809520,-1117.504995,0.00024,7]
[367178223,1750692809577,-151.0,0.00024,7]
[367178224,1750692809635,-1117.504995,0.00024,7]
[367178225,1750692809693,-151.0,0.00024,7]
[367178226,1750692809754,-320.4846,0.00024,7]
[367178227,1750692809817,-320.4846,0.00024,7]
[367178228,1750692809878,-425.08510397,0.00024,7]
[367178229,1750692809937,-425.08510397,0.00024,3]
[367178230,1750692809997,-160.0,0.00024,7]
[367178231,1750692810060,-160.0,0.00024,3]
[367178232,1750692810125,-151.0,0.00024,7]
[367178233,1750692810191,-232.479139,0.00024,7]
[367178234,1750692810254,-726.461119,0.00024,7]
[367178235,1750692810325,-726.461119,0.00024,7]
[367178236,1750692810382,-1000.0,0.00024,5]
[367178237,1750692810446,-1275.49,0.00024099,7]
[367178238,1750692810517,-151.0,0.0002415,7]
[367178239,1750692810579,-5164.18,0.0002416,3]
[367178240,1750692810644,-2582.08,0.0002416,3]
[367178241,1750692810703,-1291.04,0.0002416,3]
[367178242,1750692810767,-645.52,0.0002416,3]
[367178243,1750692810826,-322.76,0.0002416,3]
[367178244,1750692810884,-304.7,0.0002416,3]
[367178245,1750692810941,-1275.49,0.00024199,3]
[367178246,1750692810997,-200.0,0.00024234,3]
[367178247,1750692811057,-1275.49,0.00024299,6]
[367178248,1750692811116,-151.0,0.00024321,7]
[367178249,1750692811175,-151.0,0.00024321,7]
[367178250,1750692811229,-151.0,0.00024321,7]
[367178251,1750692811288,-320.4846,0.00024321,7]
[367178252,1750692811348,-320.4846,0.00024321,7]
[367178253,1750692811406,-151.0,0.00024321,7]
[367178254,1750692811465,-726.461119,0.00024321,7]
[367178255,1750692811526,-726.461119,0.00024321,7]
[367178256,1750692811586,-152.016174,0.0002433,7]
[367178257,1750692811645,-322.367924,0.0002433,7]
[367178258,1750692811705,-322.367924,0.0002433,7]
[367178259,1750692811765,-151.0,0.0002433,7]
[367178260,1750692811828,-151.0,0.0002433,7]
[367178261,1750692811888,-151.0,0.0002433,7]
[367178262,1750692811947,-151.0,0.0002433,7]
[367178263,1750692812002,-151.0,0.0002433,7]
[367178264,1750692812060,-160.933406,0.0002433,7]
[367178265,1750692812118,-151.0,0.0002434,7]
[367178266,1750692812175,-151.0,0.0002434,7]
[367178267,1750692812235,-427.936486,0.0002434,7]
[367178268,1750692812292,-151.0,0.0002434,7]
[367178269,1750692812355,-427.936486,0.0002434,7]
[367178270,1750692812412,-151.0,0.0002434,7]
[367178271,1750692812474,-156.170078,0.0002434,7]
[367178272,1750692812531,-151.0,0.0002434,7]
[367178273,1750692812591,-151.0,0.0002434,7]
[367178274,1750692812647,-151.0,0.0002434,7]
[367178275,1750692812704,-190.453664,0.0002434,7]
[367178276,1750692812954,-190.453664,0.0002434,7]
[367178277,1750692813034,-151.0,0.0002434,7]
[367178278,1750692813092,-151.0,0.0002434,7]
[367178279,1750692813151,-1117.504995,0.0002434,7]
[367178280,1750692813210,-1117.504995,0.0002434,7]
[367178281,1750692813269,-151.0,0.00024384,7]
[367178282,1750692813327,-151.0,0.00024384,7]
[367178283,1750692813386,-151.0,0.00024384,7]
[367178284,1750692813443,-151.0,0.00024384,7]
[367178285,1750692813506,-1275.49,0.00024399,5]
[367178286,1750692813570,-200.0,0.0002446,10]
[367178287,1750692813630,-1275.49,0.00024499,3]
[367178288,1750692813688,-1275.49,0.00024599,3]
[367178289,1750692813750,-200.0,0.000246,7]
[367178290,1750692813812,-33508.19658589,0.0002465,7]
[367178291,1750692813871,-400.0,0.00024658,7]
[367178292,1750692813930,-500.0,0.00024658,30]
[367178293,1750692813986,-500.0,0.00024658,7]
[367178294,1750692814044,-500.0,0.00024658,7]
[367178295,1750692814102,-500.0,0.00024658,10]
[367178296,1750692814163,-500.0,0.00024658,10]
[367178297,1750692814218,-500.0,0.00024658,7]
[367178298,1750692814277,-500.0,0.00024658,7]
[367178299,1750692814340,-500.0,0.00024658,15]
[367178300,1750692814401,-500.0,0.00024658,10]
[367178301,1750692814460,-500.0,0.00024658,7]
[367178302,1750692814522,-500.0,0.00024658,7]
[367178303,1750692814582,-500.0,0.00024658,30]
[367178304,1750692814641,-500.0,0.00024658,30]
[367178305,1750692814699,-500.0,0.00024658,15]
[367178306,1750692814760,-500.0,0.00024658,30]
[367178307,1750692814822,-500.0,0.00024658,10]
[367178308,1750692814881,-500.0,0.00024658,7]
[367178309,1750692814943,-500.0,0.00024658,30]
[367178310,1750692815001,-500.0,0.00024658,7]
[367178311,1750692815062,-500.0,0.00024658,15]
[367178312,1750692815120,-500.0,0.00024658,15]
[367178313,1750692815178,-500.0,0.00024658,15]
[367178314,1750692815237,-500.0,0.00024658,7]
[367178315,1750692815295,-500.0,0.00024658,7]
[367178316,1750692815355,-500.0,0.00024658,7]
[367178317,1750692815413,-500.0,0.00024658,30]
[367178318,1750692815471,-500.0,0.00024658,15]
[367178319,1750692815529,-500.0,0.00024658,7]
[367178320,1750692815590,-179.06,0.00024658,7]
[367178321,1750692815648,-200.0,0.00024658,15]
[367178322,1750692815707,-151.0,0.00024658,7]
[367178323,1750692815768,-151.0,0.00024658,7]
[367178324,1750692815832,-151.0,0.00024658,7]
[367178325,1750692815892,-151.0,0.00024658,7]
[367178326,1750692815957,-151.0,0.00024658,7]
[367178327,1750692816018,-320.4846,0.00024658,7]
[367178328,1750692816079,-320.4846,0.00024658,7]
[367178329,1750692816137,-151.0,0.00024658,7]
[367178330,1750692816198,-726.461119,0.00024658,7]
[367178331,1750692816260,-726.461119,0.00024658,7]
[367178332,1750692816322,-298.12,0.00024659,7]
[367178333,1750692816382,-322.367924,0.0002468,7]
[367178334,1750692816442,-322.367924,0.0002468,7]
[367178335,1750692816506,-151.0,0.0002468,7]
[367178336,1750692816568,-154.2994,0.0002468,7]
[367178337,1750692816632,-251.310213,0.0002468,7]
[367178338,1750692816692,-151.0,0.0002468,7]
[367178339,1750692816756,-151.0,0.0002468,7]
[367178340,1750692816833,-151.0,0.0002468,7]
[367178341,1750692816891,-151.0,0.0002468,7]
[367178342,1750692816952,-427.936486,0.0002468,7]
[367178343,1750692817013,-151.0,0.0002468,7]
[367178344,1750692817075,-427.936486,0.0002468,7]
[367178345,1750692817136,-151.0,0.0002468,7]
[367178346,1750692817196,-159.389843,0.0002468,7]
[367178347,1750692817255,-151.0,0.0002468,7]
[367178348,1750692817319,-151.0,0.0002468,7]
[367178349,1750692817377,-151.0,0.0002468,7]
[367178350,1750692817436,-151.0,0.0002468,7]
[367178351,1750692817497,-151.0,0.0002468,7]
[367178352,1750692817557,-190.453664,0.0002468,7]
[367178353,1750692817621,-190.453664,0.0002468,7]
[367178354,1750692817681,-151.0,0.0002468,7]
[367178355,1750692817744,-151.0,0.0002468,7]
[367178356,1750692817804,-151.0,0.0002468,7]
[367178357,1750692817865,-1117.504995,0.0002468,7]
[367178358,1750692817924,-151.0,0.0002468,7]
[367178359,1750692817982,-151.0,0.0002468,7]
[367178360,1750692818040,-1117.504995,0.0002468,7]
[367178361,1750692818095,-320.4846,0.0002468,7]
[367178362,1750692818151,-320.48459,0.0002468,7]
[367178363,1750692818207,-151.0,0.0002468,7]
[367178364,1750692818271,-726.461119,0.0002468,7]
[367178365,1750692818333,-726.4611165,0.0002468,7]
[367178366,1750692818391,-1275.49,0.00024699,3]
[367178367,1750692818451,-322.367924,0.00024755,7]
[367178368,1750692818515,-322.367924,0.00024755,7]
[367178369,1750692818586,-153.545801,0.00024755,7]
[367178370,1750692818653,-151.0,0.00024755,7]
[367178371,1750692818717,-151.0,0.00024755,7]
[367178372,1750692818784,-151.0,0.00024755,7]
[367178373,1750692818853,-151.0,0.00024755,7]
[367178374,1750692818919,-427.936486,0.00024755,7]
[367178375,1750692818990,-151.0,0.00024755,7]
[367178376,1750692819058,-151.0,0.00024755,7]
[367178377,1750692819125,-427.936486,0.00024755,7]
[367178378,1750692819192,-151.0,0.00024755,7]
[367178379,1750692819259,-151.0,0.00024755,7]
[367178380,1750692819327,-190.872324,0.00024755,7]
[367178381,1750692819401,-151.0,0.00024755,7]
[367178382,1750692819473,-151.0,0.00024755,7]
[367178383,1750692819545,-190.453664,0.00024755,7]
[367178384,1750692819615,-190.453664,0.00024755,7]
[367178385,1750692819681,-151.0,0.00024755,7]
[367178386,1750692819751,-151.0,0.00024755,7]
[367178387,1750692819816,-151.0,0.00024755,7]
[367178388,1750692819881,-1117.504995,0.00024755,7]
[367178389,1750692819951,-151.0,0.00024755,7]
[367178390,1750692820019,-151.0,0.00024755,7]
[367178391,1750692820087,-1117.504995,0.00024755,7]
[367178392,1750692820158,-151.0,0.00024774,7]
[367178393,1750692820228,-151.0,0.00024774,7]
[367178394,1750692820293,-151.0,0.00024774,7]
[367178395,1750692820363,-151.0,0.00024774,7]
[367178396,1750692820429,-427.936486,0.00024774,7]
[367178397,1750692820496,-281.40082,0.00024774,7]
[367178398,1750692820561,-151.0,0.00024774,7]
[367178399,1750692820629,-427.936486,0.00024774,7]
[367178400,1750692820696,-151.0,0.00024774,7]
[367178401,1750692820761,-151.0,0.00024774,7]
[367178402,1750692820829,-250.656945,0.00024774,7]
[367178403,1750692820890,-151.0,0.00024774,7]
[367178404,1750692820961,-190.453664,0.00024774,7]
[367178405,1750692821032,-190.453664,0.00024774,7]
[367178406,1750692821095,-151.0,0.00024774,7]
[367178407,1750692821162,-151.0,0.00024774,7]
[367178408,1750692821232,-151.0,0.00024774,7]
[367178409,1750692821296,-1117.504995,0.00024774,7]
[367178410,1750692821367,-151.0,0.00024774,7]
[367178411,1750692821434,-262.957832,0.00024774,7]
[367178412,1750692821509,-1117.504995,0.00024774,7]
[367178413,1750692821577,-322.367924,0.00024795,7]
[367178414,1750692821642,-322.367924,0.00024795,7]
[367178415,1750692821706,-1275.49,0.00024799,5]
[367178416,1750692821777,-151.0,0.000248,7]
[367178417,1750692821844,-151.0,0.000248,7]
[367178418,1750692821906,-151.0,0.000248,7]
[367178419,1750692821970,-151.0,0.000248,7]
[367178420,1750692822036,-427.936486,0.000248,7]
[367178421,1750692822099,-151.0,0.000248,7]
[367178422,1750692822164,-427.936486,0.000248,7]
[367178423,1750692822227,-152.836998,0.000248,7]
[367178424,1750692822294,-190.453664,0.000248,7]
[367178425,1750692822364,-190.453664,0.000248,7]
[367178426,1750692822430,-1275.49,0.00024899,7]
[367178427,1750692822497,-6373.19,0.000249,7]
[367178428,1750692822565,-322.367924,0.000249,7]
[367178429,1750692822631,-322.367924,0.000249,7]
[367178430,1750692822697,-322.367924,0.000249,7]
[367178431,1750692822764,-322.367924,0.000249,7]
[367178432,1750692822829,-151.0,0.000249,7]
[367178433,1750692822891,-259.73923,0.000249,7]
[367178434,1750692822957,-151.0,0.000249,7]
[367178435,1750692823020,-201.886768,0.000249,7]
[367178436,1750692823079,-427.936486,0.000249,7]
[367178437,1750692823139,-151.0,0.000249,7]
[367178438,1750692823201,-427.93648,0.000249,7]
[367178439,1750692823260,-151.0,0.000249,7]
[367178440,1750692823324,-151.0,0.000249,7]
[367178441,1750692823384,-151.0,0.000249,7]
[367178442,1750692823446,-151.0,0.000249,7]
[367178443,1750692823506,-190.453664,0.000249,7]
[367178444,1750692823567,-190.453656,0.000249,7]
[367178445,1750692823627,-151.0,0.000249,7]
[367178446,1750692823683,-151.0,0.000249,7]
[367178447,1750692823749,-151.0,0.000249,7]
[367178448,1750692823814,-151.0,0.000249,7]
[367178449,1750692823881,-229.368256,0.000249,7]
[367178450,1750692823965,-1117.504995,0.000249,7]
[367178451,1750692824036,-151.0,0.000249,7]
[367178452,1750692824516,-1117.504995,0.000249,7]
[367178453,1750692824578,-151.0,0.000249,7]
[367178454,1750692824639,-1117.504995,0.000249,7]
[367178455,1750692824701,-1117.504995,0.000249,7]
[367178456,1750692824763,-200.0,0.00024931,120]
[367178457,1750692824825,-1119.643591,0.0002498,5]
[367178458,1750692824888,-1275.49,0.00024999,7]
[367178459,1750692824949,-184.0,0.00025,3]
[367178460,1750692825012,-10013.23,0.00025,7]
[367178461,1750692825075,-185935.75003168,0.00025,7]
[367178462,1750692825137,-668.71667149,0.00025,7]
[367178463,1750692825201,-154.0,0.00025,120]
[367178464,1750692825262,-400.0,0.00025,3]
[367178465,1750692825327,-322.367924,0.00025,7]
[367178466,1750692825389,-322.36793,0.00025,7]
[367178467,1750692825453,-151.0,0.00025,7]